fUST/lending_fUST_20250718
["ID","MTS","AMOUNT","RATE_DAILY","PERIOD"]
[372957692,1752821445250,-505.93,0.00019448,2]
[372957693,1752821445259,-405.19,0.00019448,2]
[372957694,1752821445269,-460.0,0.00019448,2]
[372957695,1752821445279,-460.0,0.0001945,2]
[372957696,1752821445289,-835.65,0.0001945,2]
[372957697,1752821445298,-712.15,0.0001945,2]
[372957698,1752821445308,-474.61,0.0001945,2]
[372957699,1752821445317,-538.92,0.0001945,2]
[372957700,1752821445327,-851.11,0.0001945,2]
[372957701,1752821445336,-1010.53,0.0001945,2]
[372957702,1752821445346,-460.0,0.0001945,2]
[372957703,1752821445355,-460.0,0.0001945,2]
[372957704,1752821445365,-460.0,0.0001945,2]
[372957705,1752821445374,-460.0,0.00019451,2]
[372957706,1752821445383,-460.0,0.00019451,2]
[372957707,1752821445393,-460.0,0.00019451,2]
[372957708,1752821445402,-460.0,0.00019451,2]
[372957709,1752821445412,-165.02894893,0.00019533,2]
[372957710,1752821445422,-460.0,0.00019722,2]
[372957711,1752821445431,-243.98,0.00019724,2]
[372957712,1752821445440,-835.65,0.00019724,2]
[372957713,1752821445450,-712.15,0.00019724,2]
[372957714,1752821445460,-474.61,0.00019724,2]
[372957715,1752821445471,-538.92,0.00019724,2]
[372957716,1752821445480,-851.11,0.00019724,2]
[372957717,1752821445490,-1010.53,0.00019724,2]
[372957719,1752821445499,-460.0,0.00019724,2]
[372957720,1752821445508,-460.0,0.00019724,2]
[372957721,1752821445518,-460.0,0.00019724,2]
[372957722,1752821445527,-460.0,0.00019725,2]
[372957723,1752821445537,-356.88,0.00019725,2]
[372957725,1752821445546,-441.29,0.00019725,2]
[372957727,1752821445556,-460.0,0.00019725,2]
[372957728,1752821445565,-150.0,0.00019907,2]
[372957729,1752821445575,-460.0,0.00019996,2]
[372957730,1752821445584,-835.65,0.00019998,2]
[372957731,1752821445594,-712.15,0.00019998,2]
[372957732,1752821445603,-474.61,0.00019998,2]
[372957733,1752821445612,-538.92,0.00019998,2]
[372957734,1752821445623,-851.11,0.00019998,2]
[372957735,1752821445634,-1010.53,0.00019998,2]
[372957736,1752821445643,-460.0,0.00019998,2]
[372957737,1752821445654,-460.0,0.00019998,2]
[372957738,1752821445664,-460.0,0.00019998,2]
[372957739,1752821445675,-460.0,0.00019999,2]
[372957740,1752821445686,-460.0,0.00019999,2]
[372957741,1752821445697,-305.674476,0.00020187,2]
[372957742,1752821445707,-460.0,0.0002027,2]
[372957743,1752821445717,-835.65,0.00020272,2]
[372957744,1752821445728,-712.15,0.00020272,2]
[372957745,1752821445738,-474.61,0.00020272,2]
[372957746,1752821445747,-538.92,0.00020272,2]
[372957747,1752821445758,-851.11,0.00020272,2]
[372957748,1752821445767,-1010.53,0.00020272,2]
[372957749,1752821445778,-460.0,0.00020272,2]
[372957750,1752821445788,-460.0,0.00020272,2]
[372957751,1752821445798,-460.0,0.00020273,2]
[372957752,1752821445807,-199.2,0.00020273,2]
[372957753,1752821445817,-460.0,0.00020544,2]
[372957754,1752821445827,-835.65,0.00020546,2]
[372957755,1752821445841,-712.15,0.00020546,2]
[372957756,1752821445851,-474.61,0.00020546,2]
[372957757,1752821445862,-538.92,0.00020546,2]
[372957758,1752821445871,-851.11,0.00020546,2]
[372957759,1752821445882,-1010.53,0.00020546,2]
[372957760,1752821445891,-460.0,0.00020546,2]
[372957761,1752821445901,-460.0,0.00020546,2]
[372957762,1752821445911,-460.0,0.00020547,2]
[372957763,1752821445921,-153.18992477,0.0002072,2]
[372957765,1752821445931,-460.0,0.00020818,2]
[372957766,1752821445941,-835.65,0.0002082,2]
[372957768,1752821445951,-712.15,0.0002082,2]
[372957769,1752821445961,-474.61,0.0002082,2]
[372957770,1752821445972,-538.92,0.0002082,2]
[372957771,1752821445982,-851.11,0.0002082,2]
[372957772,1752821445991,-1010.53,0.0002082,2]
[372957773,1752821446001,-460.0,0.0002082,2]
[372957774,1752821446010,-460.0,0.0002082,2]
[372957775,1752821446020,-460.0,0.00020821,2]
[372957776,1752821446031,-467.071,0.00020888,2]
[372957777,1752821446040,-179.0,0.00020904,3]
[372957778,1752821446053,-165.02894893,0.00020994,2]
[372957779,1752821446062,-229.17,0.00021092,2]
[372957780,1752821446073,-835.65,0.00021094,2]
[372957781,1752821446085,-712.15,0.00021094,2]
[372957782,1752821446095,-474.61,0.00021094,2]
[372957783,1752821446104,-538.92,0.00021094,2]
[372957785,1752821446114,-851.11,0.00021094,2]
[372957787,1752821446123,-1010.53,0.00021094,2]
[372957788,1752821446134,-460.0,0.00021094,2]
[372957789,1752821446143,-460.0,0.00021094,2]
[372957791,1752821446152,-184.57,0.00021095,2]
[372957792,1752821446162,-150.0,0.00021329,2]
[372957793,1752821446172,-835.65,0.00021368,2]
[372957794,1752821446182,-712.15,0.00021368,2]
[372957795,1752821446192,-474.61,0.00021368,2]
[372957797,1752821446201,-538.92,0.00021368,2]
[372957798,1752821446211,-851.11,0.00021368,2]
[372957799,1752821446222,-1010.53,0.00021368,2]
[372957800,1752821446231,-460.0,0.00021368,2]
[372957801,1752821446241,-460.0,0.00021368,2]
[372957802,1752821446251,-835.65,0.00021642,2]
[372957804,1752821446261,-712.15,0.00021642,2]
[372957805,1752821446271,-474.61,0.00021642,2]
[372957806,1752821446281,-538.92,0.00021642,2]
[372957807,1752821446292,-851.11,0.00021642,2]
[372957808,1752821446301,-1010.53,0.00021642,2]
[372957809,1752821446311,-460.0,0.00021642,2]
[372957811,1752821446321,-437.68524216,0.00021642,2]
[372957812,1752821446331,-500.0,0.00021868,2]
[372957813,1752821446341,-153.18992476,0.00021884,2]
[372957814,1752821446350,-835.65,0.00021916,2]
[372957815,1752821446360,-712.15,0.00021916,2]
[372957816,1752821446370,-474.61,0.00021916,2]
[372957817,1752821446380,-538.92,0.00021916,2]
[372957818,1752821446390,-851.11,0.00021916,2]
[372957819,1752821446399,-1010.53,0.00021916,2]
[372957820,1752821446409,-460.0,0.00021916,2]
[372957821,1752821446532,-460.0,0.00021999,2]
[372957822,1752821446543,-460.0,0.00021999,2]
[372957823,1752821446553,-460.0,0.00021999,2]
[372957824,1752821446563,-460.73606232,0.00021999,2]
[372957825,1752821446572,-460.0,0.00021999,2]
[372957826,1752821446582,-460.0,0.00021999,2]
[372957827,1752821446591,-460.0,0.00021999,2]
[372957828,1752821446600,-460.0,0.00021999,2]
[372957829,1752821446610,-460.0,0.00021999,2]
[372957830,1752821446619,-460.0,0.00021999,2]
[372957831,1752821446629,-460.0,0.00021999,2]
[372957832,1752821446638,-460.0,0.00021999,2]
[372957833,1752821446647,-460.0,0.00021999,2]
[372957834,1752821446656,-460.0,0.00021999,2]
[372957835,1752821446666,-460.0,0.00021999,2]
[372957836,1752821446677,-460.0,0.00021999,2]
[372957837,1752821446687,-460.0,0.00021999,2]
[372957838,1752821446697,-460.0,0.00021999,2]
[372957839,1752821446707,-460.0,0.00021999,2]
[372957840,1752821446716,-460.0,0.00021999,2]
[372957841,1752821446726,-460.0,0.00021999,2]
[372957842,1752821446736,-460.0,0.00021999,2]
[372957843,1752821446745,-460.0,0.00021999,2]
[372957844,1752821446755,-460.0,0.00021999,2]
[372957845,1752821446767,-1554.26,0.00021999,2]
[372957846,1752821446778,-5940.95805435,0.00022,7]
[372957847,1752821446788,-6571.49,0.00022,7]
[372957848,1752821446798,-476.25663856,0.00022,7]
[372957849,1752821446807,-835.65,0.0002219,2]
[372957850,1752821446817,-712.15,0.0002219,2]
[372957851,1752821446828,-474.61,0.0002219,2]
[372957852,1752821446841,-538.92,0.0002219,2]
[372957853,1752821446851,-851.11,0.0002219,2]
[372957854,1752821446860,-1010.53,0.0002219,2]
[372957855,1752821446871,-460.0,0.0002219,2]
[372957856,1752821446880,-461.03816796,0.00022273,2]
[372957857,1752821446890,-460.0,0.00022273,2]
[372957858,1752821446901,-460.0,0.00022273,2]
[372957859,1752821446912,-460.0,0.00022273,2]
[372957860,1752821446923,-460.0,0.00022273,2]
[372957861,1752821446933,-460.0,0.00022273,2]
[372957862,1752821446942,-460.0,0.00022273,2]
[372957863,1752821446952,-1554.26,0.00022273,2]
[372957864,1752821446962,-165.02894893,0.00022455,2]
[372957865,1752821446972,-835.65,0.00022464,2]
[372957866,1752821446982,-712.15,0.00022464,2]
[372957867,1752821446992,-474.61,0.00022464,2]
[372957868,1752821447001,-538.92,0.00022464,2]
[372957869,1752821447010,-851.11,0.00022464,2]
[372957870,1752821447019,-1010.53,0.00022464,2]
[372957871,1752821447028,-460.0,0.00022464,2]
[372957872,1752821447038,-1380.69,0.000225,7]
[372957873,1752821447047,-397.26525267,0.00022547,2]
[372957874,1752821447056,-460.0,0.00022547,2]
[372957875,1752821447066,-460.0,0.00022547,2]
[372957876,1752821447075,-460.0,0.00022547,2]
[372957877,1752821447085,-460.0,0.00022547,2]
[372957878,1752821447095,-460.0,0.00022547,2]
[372957879,1752821447104,-1554.26,0.00022547,2]
[372957880,1752821447114,-207.4,0.00022596,2]
[372957881,1752821447123,-151.0,0.00022596,2]
[372957882,1752821447133,-151.0,0.00022596,2]
[372957883,1752821447143,-151.0,0.00022596,2]
[372957884,1752821447152,-151.0,0.00022596,2]
[372957885,1752821447161,-151.0,0.00022596,2]
[372957886,1752821447171,-151.0,0.00022596,2]
[372957887,1752821447180,-151.0,0.00022596,2]
[372957888,1752821447190,-151.0,0.00022596,2]
[372957889,1752821447199,-151.0,0.00022596,2]
[372957890,1752821447209,-151.0,0.00022596,2]
[372957891,1752821447218,-151.0,0.00022596,2]
[372957892,1752821447229,-151.0,0.00022596,2]
[372957893,1752821447238,-151.0,0.00022596,2]
[372957894,1752821447248,-151.0,0.00022596,2]
[372957895,1752821447258,-151.0,0.00022596,2]
[372957896,1752821447267,-151.0,0.00022596,2]
[372957897,1752821447277,-151.0,0.00022596,2]
[372957898,1752821447286,-151.0,0.00022596,2]
[372957899,1752821447295,-151.0,0.00022596,2]
[372957900,1752821447305,-151.0,0.00022596,2]
[372957901,1752821447316,-1136.72,0.000226,7]
[372957902,1752821447325,-835.65,0.00022738,2]
[372957903,1752821447335,-712.15,0.00022738,2]
[372957904,1752821447345,-474.61,0.00022738,2]
[372957905,1752821447355,-538.92,0.00022738,2]
[372957906,1752821447364,-851.11,0.00022738,2]
[372957907,1752821447374,-1010.53,0.00022738,2]
[372957908,1752821447384,-460.0,0.00022738,2]
[372957909,1752821447393,-154.146774,0.00022778,10]
[372957910,1752821447404,-12500.0,0.00022778,7]
[372957911,1752821447415,-12500.0,0.00022787,7]
[372957912,1752821447425,-12500.0,0.00022796,7]
[372957913,1752821447434,-460.0,0.00022821,2]
[372957914,1752821447444,-460.0,0.00022821,2]
[372957915,1752821447454,-460.0,0.00022821,2]
[372957916,1752821447464,-211.83,0.00022821,2]
[372957917,1752821447474,-460.0,0.00022821,2]
[372957918,1752821447484,-1554.26,0.00022821,2]
[372957919,1752821447493,-796.39,0.00023,2]
[372957920,1752821447503,-835.87,0.00023012,2]
[372957921,1752821447513,-712.17,0.00023012,2]
[372957922,1752821447522,-474.61,0.00023012,2]
[372957923,1752821447532,-539.02,0.00023012,2]
[372957924,1752821447542,-851.11,0.00023012,2]
[372957925,1752821447552,-1010.76,0.00023012,2]
[372957926,1752821447562,-373.8,0.00023012,2]
[372957927,1752821447572,-153.18992476,0.00023049,2]
[372957928,1752821447581,-460.0,0.00023095,2]
[372957929,1752821447591,-460.0,0.00023095,2]
[372957930,1752821447600,-460.0,0.00023095,2]
[372957931,1752821447610,-460.0,0.00023095,2]
[372957932,1752821447620,-1554.26,0.00023095,2]
[372957933,1752821447629,-181.0,0.00023096,9]
[372957934,1752821447640,-851.11,0.00023286,2]
[372957935,1752821447649,-6571.49,0.000233,7]
[372957936,1752821447659,-12610.43989422,0.000233,7]
[372957937,1752821447669,-460.0,0.00023369,2]
[372957938,1752821447678,-460.0,0.00023369,2]
[372957939,1752821447688,-460.0,0.00023369,2]
[372957940,1752821447698,-460.0,0.00023369,2]
[372957941,1752821447708,-1554.26,0.00023369,2]
[372957942,1752821447717,-1371.30963216,0.00023386,2]
[372957943,1752821447728,-404.29,0.00023555,2]
[372957944,1752821447738,-647.0,0.00023558,2]
[372957945,1752821447748,-2156.0,0.00023558,2]
[372957946,1752821447757,-968.0,0.00023558,2]
[372957947,1752821447767,-407.0,0.00023558,2]
[372957948,1752821447776,-851.14999999,0.00023559,2]
[372957949,1752821447785,-429.318869,0.00023589,2]
[372957950,1752821447794,-429.318869,0.00023589,2]
[372957951,1752821447804,-429.318869,0.00023589,2]
[372957952,1752821447814,-429.318869,0.00023589,2]
[372957953,1752821447825,-429.318869,0.00023589,2]
[372957954,1752821447838,-402.936892,0.00023589,2]
[372957955,1752821447847,-460.0,0.00023643,2]
[372957956,1752821447856,-460.0,0.00023643,2]
[372957957,1752821447866,-460.0,0.00023643,2]
[372957958,1752821447875,-460.0,0.00023643,2]
[372957959,1752821447884,-1554.26,0.00023643,2]
[372957960,1752821447894,-3160.78015593,0.00023667,2]
[372957961,1752821447903,-175.807952,0.00023744,2]
[372957962,1752821447916,-1380.69,0.000238,7]
[372957963,1752821447926,-3160.78015593,0.00023868,2]
[372957964,1752821447935,-165.02894893,0.00023916,2]
[372957965,1752821447944,-460.0,0.00023917,2]
[372957966,1752821447954,-460.0,0.00023917,2]
[372957967,1752821447963,-460.0,0.00023917,2]
[372957968,1752821447973,-460.0,0.00023917,2]
[372957969,1752821447982,-1554.26,0.00023917,2]
[372957970,1752821447991,-215.0738,0.00023965,2]
[372957971,1752821448001,-839.30593155,0.00024,7]
[372957972,1752821448011,-500.0,0.0002406,2]
[372957973,1752821448021,-157.79,0.00024191,2]
[372957974,1752821448031,-460.0,0.00024191,2]
[372957975,1752821448040,-460.0,0.00024191,2]
[372957976,1752821448050,-460.0,0.00024191,2]
[372957977,1752821448059,-1554.26,0.00024191,2]
[372957978,1752821448069,-153.18992476,0.00024213,2]
[372957979,1752821448079,-3160.78015593,0.00024335,2]
[372957980,1752821448088,-251.54,0.00024465,2]
[372957981,1752821448098,-460.0,0.00024465,2]
[372957982,1752821448107,-460.0,0.00024465,2]
[372957983,1752821448117,-1554.26,0.00024465,2]
[372957984,1752821448127,-3160.78015593,0.00024558,2]
[372957985,1752821448137,-1136.72,0.000246,7]
[372957986,1752821448146,-6571.49,0.000246,7]
[372957987,1752821448156,-460.0,0.00024739,2]
[372957988,1752821448166,-460.0,0.00024739,2]
[372957989,1752821448176,-1554.26,0.00024739,2]
[372957990,1752821448186,-3160.78015593,0.00024843,2]
[372957991,1752821448196,-151.0,0.000249,7]
[372957992,1752821448206,-526357.83063865,0.000249,2]
[372957993,1752821448288,-1626.45,0.000249,2]
[372957994,1752821449030,-476.70759019,0.00016711,2]
[372957995,1752821449040,-460.0,0.00020272,2]
[372957996,1752821449050,-282.88,0.00020546,2]
[372957997,1752821449060,-250044.64285935,0.000249,2]
[372957998,1752821449070,-383.305083,0.00024971,8]
[372957999,1752821449079,-151.0,0.00025,7]
[372958000,1752821449090,-151.0,0.00025,7]
[372958001,1752821449099,-151.0,0.00025,7]
[372958002,1752821449109,-151.0,0.00025,7]
[372958003,1752821449119,-483.476582,0.00025,7]
[372958004,1752821449128,-1074.85456521,0.00025,3]
[372958005,1752821449138,-159.919554,0.00025004,10]
[372958006,1752821449148,-460.0,0.00025013,2]
[372958007,1752821449158,-460.0,0.00025013,2]
[372958008,1752821449167,-1554.26,0.00025013,2]
[372958009,1752821449177,-758.81652887,0.00025071,14]
[372958010,1752821449187,-1211.15229029,0.00025096,14]
[372958011,1752821449197,-3160.78015593,0.00025195,2]
[372958012,1752821449207,-1380.69,0.000252,7]
[372958013,1752821449216,-460.0,0.00025287,2]
[372958014,1752821449227,-460.0,0.00025287,2]
[372958015,1752821449236,-1554.26,0.00025287,2]
[372958016,1752821449247,-184.0,0.00025288,16]
[372958017,1752821449257,-800.0,0.00025319,2]
[372958018,1752821449266,-223.0315306,0.00025334,2]
[372958019,1752821449276,-153.18992476,0.00025377,2]
[372958020,1752821449287,-165.02894893,0.00025377,2]
[372958021,1752821449297,-800.0,0.00025385,2]
[372958022,1752821449307,-203.05646837,0.000254,7]
[372958023,1752821449316,-150.0,0.000254,2]
[372958024,1752821449326,-476.25663856,0.000254,3]
[372958025,1752821449336,-3160.78015599,0.0002541,2]
[372958026,1752821449346,-600.0,0.00025414,2]
[372958027,1752821449356,-500.0,0.00025425,2]
[372958028,1752821449365,-2344.5,0.00025446,10]
[372958029,1752821449375,-4470.82,0.00025446,10]
[372958030,1752821449384,-3725.68,0.00025446,10]
[372958031,1752821449394,-159.919554,0.00025465,3]
[372958032,1752821449403,-151.0,0.00025471,7]
[372958033,1752821449413,-151.0,0.00025471,7]
[372958034,1752821449423,-151.0,0.00025471,7]
[372958035,1752821449433,-151.588102,0.00025471,7]
[372958036,1752821449443,-151.0,0.00025471,7]
[372958037,1752821449452,-151.0,0.00025471,7]
[372958038,1752821449462,-151.487078,0.00025471,7]
[372958039,1752821449474,-151.156413,0.00025471,7]
[372958040,1752821449483,-151.0,0.00025471,7]
[372958041,1752821449493,-151.0,0.00025471,7]
[372958042,1752821449503,-151.0,0.00025471,7]
[372958043,1752821449512,-151.0,0.00025471,7]
[372958044,1752821449522,-151.0,0.00025471,7]
[372958045,1752821449531,-151.0,0.00025471,7]
[372958046,1752821449541,-151.0,0.00025471,7]
[372958047,1752821449551,-177.672,0.00025471,7]
[372958048,1752821449562,-151.0,0.00025471,7]
[372958049,1752821449572,-151.0,0.00025471,7]
[372958050,1752821449582,-151.0,0.00025471,7]
[372958051,1752821449592,-151.0,0.00025471,7]
[372958052,1752821449603,-151.0,0.00025471,7]
[372958053,1752821449613,-151.0,0.00025471,7]
[372958054,1752821449623,-151.0,0.00025471,7]
[372958055,1752821449633,-151.0,0.00025471,7]
[372958056,1752821449643,-151.0,0.00025471,7]
[372958057,1752821449653,-153.709726,0.00025471,7]
[372958058,1752821449664,-151.0,0.00025471,7]
[372958059,1752821449674,-260.077216,0.00025471,7]
[372958060,1752821449684,-260.077216,0.00025471,7]
[372958061,1752821449694,-260.077216,0.00025471,7]
[372958062,1752821449709,-260.077216,0.00025471,7]
[372958063,1752821449719,-260.077216,0.00025471,7]
[372958064,1752821449734,-260.077216,0.00025471,7]
[372958065,1752821449855,-260.077216,0.00025471,7]
[372958066,1752821449864,-260.077216,0.00025471,7]
[372958067,1752821449875,-260.077216,0.00025471,7]
[372958068,1752821449889,-260.077216,0.00025471,7]
[372958069,1752821449904,-260.077216,0.00025471,7]
[372958070,1752821449920,-260.077216,0.00025471,7]
[372958071,1752821449930,-260.077216,0.00025471,7]
[372958072,1752821449940,-260.077216,0.00025471,7]
[372958073,1752821449950,-260.077216,0.00025471,7]
[372958074,1752821449961,-260.077216,0.00025471,7]
[372958075,1752821449972,-260.077216,0.00025471,7]
[372958076,1752821449983,-260.077216,0.00025471,7]
[372958077,1752821449993,-260.077216,0.00025471,7]
[372958078,1752821450003,-260.077226,0.00025471,7]
[372958079,1752821450014,-151.804347,0.00025471,7]
[372958080,1752821450024,-151.0,0.00025471,7]
[372958081,1752821450034,-151.0,0.00025471,7]
[372958082,1752821450044,-151.0,0.00025471,7]
[372958083,1752821450055,-151.0,0.00025471,7]
[372958084,1752821450066,-151.0,0.00025471,7]
[372958085,1752821450076,-151.0,0.00025471,7]
[372958086,1752821450086,-151.0,0.00025471,7]
[372958087,1752821450096,-151.0,0.00025471,7]
[372958088,1752821450106,-226.993,0.00025471,7]
[372958089,1752821450116,-151.0,0.00025471,7]
[372958090,1752821450127,-151.0,0.00025471,7]
[372958091,1752821450137,-151.0,0.00025471,7]
[372958092,1752821450147,-151.0,0.00025471,7]
[372958093,1752821450157,-151.0,0.00025471,7]
[372958094,1752821450167,-151.0,0.00025471,7]
[372958095,1752821450179,-151.0,0.00025471,7]
[372958096,1752821450189,-151.0,0.00025471,7]
[372958097,1752821450200,-151.0,0.00025471,7]
[372958098,1752821450210,-151.0,0.00025471,7]
[372958099,1752821450220,-151.0,0.00025471,7]
[372958100,1752821450232,-151.0,0.00025471,7]
[372958101,1752821450242,-151.0,0.00025471,7]
[372958102,1752821450252,-151.0,0.00025471,7]
[372958103,1752821450263,-151.0,0.00025471,7]
[372958104,1752821450273,-151.0,0.00025471,7]
[372958105,1752821450283,-151.0,0.00025471,7]
[372958106,1752821450293,-289.047055,0.00025471,7]
[372958107,1752821450304,-177.394822,0.00025471,7]
[372958108,1752821450314,-177.394822,0.00025471,7]
[372958109,1752821450324,-177.394822,0.00025471,7]
[372958110,1752821450334,-177.394822,0.00025471,7]
[372958111,1752821450343,-177.394822,0.00025471,7]
[372958112,1752821450354,-177.394822,0.00025471,7]
[372958113,1752821450364,-177.394822,0.00025471,7]
[372958114,1752821450374,-177.394822,0.00025471,7]
[372958115,1752821450384,-177.394822,0.00025471,7]
[372958116,1752821450394,-177.394822,0.00025471,7]
[372958117,1752821450404,-177.394822,0.00025471,7]
[372958118,1752821450414,-177.394822,0.00025471,7]
[372958119,1752821450423,-177.394822,0.00025471,7]
[372958120,1752821450433,-177.394822,0.00025471,7]
[372958121,1752821450443,-177.394822,0.00025471,7]
[372958122,1752821450453,-177.394822,0.00025471,7]
[372958123,1752821450463,-177.394822,0.00025471,7]
[372958124,1752821450474,-177.394822,0.00025471,7]
[372958125,1752821450484,-177.394822,0.00025471,7]
[372958126,1752821450494,-177.39482,0.00025471,7]
[372958127,1752821450504,-600.0,0.00025471,2]
[372958128,1752821450513,-151.0,0.00025473,7]
[372958129,1752821450524,-151.0,0.00025473,7]
[372958130,1752821450537,-151.0,0.00025473,7]
[372958131,1752821450547,-151.0,0.00025473,7]
[372958132,1752821450557,-151.0,0.00025473,7]
[372958133,1752821450568,-232.289656,0.00025473,7]
[372958134,1752821450579,-151.0,0.00025473,7]
[372958135,1752821450591,-152.193325,0.00025473,7]
[372958136,1752821450601,-151.0,0.00025473,7]
[372958137,1752821450610,-151.0,0.00025473,7]
[372958138,1752821450620,-151.0,0.00025473,7]
[372958139,1752821450636,-151.0,0.00025473,7]
[372958140,1752821450652,-225.240953,0.00025473,7]
[372958141,1752821450663,-275.166054,0.00025473,7]
[372958142,1752821450673,-275.166059,0.00025473,7]
[372958143,1752821450684,-205.780371,0.00025473,7]
[372958144,1752821450695,-205.780371,0.00025473,7]
[372958145,1752821450705,-205.780371,0.00025473,7]
[372958146,1752821450715,-205.780371,0.00025473,7]
[372958147,1752821450727,-205.780371,0.00025473,7]
[372958148,1752821450736,-205.780371,0.00025473,7]
[372958149,1752821450746,-205.780371,0.00025473,7]
[372958150,1752821450756,-205.780371,0.00025473,7]
[372958151,1752821450766,-205.780371,0.00025473,7]
[372958152,1752821450775,-205.780371,0.00025473,7]
[372958153,1752821450785,-205.780371,0.00025473,7]
[372958154,1752821450795,-205.780371,0.00025473,7]
[372958155,1752821450805,-205.780371,0.00025473,7]
[372958156,1752821450815,-205.780371,0.00025473,7]
[372958157,1752821450826,-205.780371,0.00025473,7]
[372958158,1752821450836,-205.780371,0.00025473,7]
[372958159,1752821450846,-205.780371,0.00025473,7]
[372958160,1752821450856,-205.780371,0.00025473,7]
[372958161,1752821450866,-205.780371,0.00025473,7]
[372958162,1752821450880,-205.780379,0.00025473,7]
[372958163,1752821450889,-151.0,0.00025473,7]
[372958164,1752821450899,-151.0,0.00025473,7]
[372958165,1752821450909,-151.0,0.00025473,7]
[372958166,1752821450919,-151.0,0.00025473,7]
[372958167,1752821450928,-151.0,0.00025473,7]
[372958168,1752821450938,-151.0,0.00025473,7]
[372958169,1752821450948,-151.0,0.00025473,7]
[372958170,1752821450957,-262.770694,0.00025473,7]
[372958171,1752821450967,-151.0,0.00025473,7]
[372958172,1752821450978,-151.0,0.00025473,7]
[372958173,1752821450987,-151.0,0.00025473,7]
[372958174,1752821451000,-151.0,0.00025473,7]
[372958175,1752821451009,-151.0,0.00025473,7]
[372958176,1752821451019,-151.0,0.00025473,7]
[372958177,1752821451028,-151.0,0.00025473,7]
[372958178,1752821451037,-151.0,0.00025473,7]
[372958179,1752821451047,-151.0,0.00025473,7]
[372958180,1752821451057,-151.0,0.00025477,7]
[372958181,1752821451067,-151.0,0.00025477,7]
[372958182,1752821451076,-151.0,0.00025477,7]
[372958183,1752821451086,-151.0,0.00025477,7]
[372958184,1752821451095,-151.0,0.00025477,7]
[372958185,1752821451105,-839.420858,0.00025477,7]
[372958186,1752821451114,-839.420858,0.00025477,7]
[372958187,1752821451124,-839.420858,0.00025477,7]
[372958188,1752821451135,-839.420858,0.00025477,7]
[372958189,1752821451145,-839.420858,0.00025477,7]
[372958190,1752821451155,-839.420858,0.00025477,7]
[372958191,1752821451165,-839.420858,0.00025477,7]
[372958192,1752821451176,-839.420858,0.00025477,7]
[372958193,1752821451188,-839.420858,0.00025477,7]
[372958194,1752821451199,-839.420858,0.00025477,7]
[372958195,1752821451211,-839.420858,0.00025477,7]
[372958196,1752821451221,-839.420858,0.00025477,7]
[372958197,1752821451231,-839.420858,0.00025477,7]
[372958198,1752821451242,-839.420858,0.00025477,7]
[372958199,1752821451252,-839.420858,0.00025477,7]
[372958200,1752821451262,-839.420858,0.00025477,7]
[372958201,1752821451271,-839.420858,0.00025477,7]
[372958202,1752821451281,-839.420858,0.00025477,7]